bitfinex/quotes_SOLUSD_20250310
["timestamp","ask_amount","ask_price","bid_price","bid_amount"]
[1741609212266,0.063,130.04,130.0,23.15993516]
[1741609212463,0.063,130.04,130.03,31.36363516]
[1741609213473,0.063,130.1,130.03,31.36363516]
[1741609213673,0.063,130.1,130.07,23.15993516]
[1741609213882,0.063,130.1,130.09,23.15993516]
[1741609214082,0.063,130.1,130.07,23.15993516]
[1741609215395,0.063,130.1,130.09,24.79253516]
[1741609215794,0.063,130.15,130.1,7.6863]
[1741609215978,0.063,130.15,130.13,23.15993516]
[1741609216173,0.063,130.15,130.12,23.15993516]
[1741609216577,0.063,130.15,130.13,23.15993516]
[1741609217290,0.063,130.15,130.14,23.15993516]
[1741609217490,0.063,130.18,130.15,6.0437]
[1741609217703,0.063,130.18,130.17,43.15993516]
[1741609217898,0.063,130.18,130.17,23.15993516]
[1741609218075,0.063,130.18,130.15,13.7271]
[1741609218393,0.063,130.18,130.16,43.08687716]
[1741609218770,0.063,130.18,130.15,49.13057716]
[1741609219070,0.063,130.18,130.15,6.0437]
[1741609219272,0.063,130.18,130.15,49.13057716]
[1741609219476,0.063,130.18,130.17,43.08687716]
[1741609219898,0.063,130.18,130.17,50.76907716]
[1741609220399,0.0001,130.2,130.19,20.0]
[1741609220590,0.063,130.24,130.19,64.71947716]
[1741609220802,0.063,130.24,130.23,43.08687716]
[1741609221087,0.063,130.24,130.21,43.08687716]
[1741609221286,0.063,130.24,130.22,43.08687716]
[1741609221489,0.063,130.24,130.2,43.08687716]
[1741609221679,0.20516157,130.24,130.21,43.08687716]
[1741609222086,0.063,130.24,130.22,43.08687716]
[1741609222297,0.063,130.24,130.23,43.08687716]
[1741609222808,0.063,130.24,130.21,7.6799]
[1741609222809,0.063,130.24,130.22,43.08687716]
[1741609222999,0.063,130.24,130.21,43.08687716]
[1741609223710,0.063,130.24,130.22,43.08687716]
[1741609224008,2.063,130.24,130.23,43.08687716]
[1741609224376,2.063,130.24,130.23,50.76557716]
[1741609224577,2.063,130.24,130.23,49.34877716]
[1741609224906,2.063,130.24,130.23,6.2619]
[1741609225105,2.063,130.24,130.23,49.34877716]
[1741609225605,2.063,130.24,130.23,57.02747716]
[1741609226514,2.063,130.24,130.19,8.1938]
[1741609226699,45.14987716,130.24,130.19,15.8746]
[1741609226878,45.14987716,130.24,130.19,58.96147716]
[1741609227079,45.14987716,130.24,130.19,1.6326]
[1741609227080,62.02084916,130.23,130.19,1.6326]
[1741609227502,18.933972,130.23,130.19,1.6326]
[1741609227691,2.063,130.24,130.2,43.08687716]
[1741609228113,2.063,130.24,130.23,43.08687716]
[1741609229283,0.063,130.25,130.24,1.5655]
[1741609229619,0.063,130.25,130.24,44.65237716]
[1741609230192,0.063,130.25,130.24,52.33047716]
[1741609230414,0.063,130.25,130.24,9.2436]
[1741609230715,0.063,130.25,130.24,52.33047716]
[1741609231381,0.063,130.25,130.22,7.6791]
[1741609231583,0.20516157,130.25,130.21,52.31327716]
[1741609231883,0.063,130.25,130.22,43.08687716]
[1741609232112,0.063,130.25,130.23,50.76547716]
[1741609233013,0.063,130.25,130.24,43.08687716]
[1741609233589,0.063,130.25,130.23,7.6786]
[1741609233792,0.063,130.25,130.24,43.08687716]
[1741609234197,0.063,130.25,130.24,50.76497716]
[1741609234490,0.063,130.25,130.23,50.76537716]
[1741609234801,0.063,130.25,130.24,43.08687716]
[1741609236417,0.063,130.25,130.24,50.76497716]
[1741609237411,0.14216157,130.33,130.27,20.0]
[1741609237722,0.14216157,130.33,130.29,43.08687716]
[1741609238097,0.14216157,130.29,130.24,26.8734]
[1741609238298,0.14216157,130.29,130.25,43.08687716]
[1741609238502,18.79181043,130.3,130.24,26.8734]
[1741609238503,0.14216157,130.3,130.27,50.76317716]
[1741609238899,0.14216157,130.3,130.27,7.6763]
[1741609239218,138.48687716,130.33,130.28,43.08687716]
[1741609239513,0.20516157,130.34,130.3,43.08687716]
[1741609240392,0.20516157,130.34,130.3,50.76107716]
[1741609240815,0.063,130.34,130.32,43.08687716]
[1741609241005,0.063,130.34,130.33,43.08687716]
[1741609241198,0.063,130.34,130.32,43.08687716]
[1741609241404,0.063,130.34,130.31,43.08687716]
[1741609241703,0.063,130.34,130.3,7.6742]
[1741609241704,0.063,130.34,130.33,43.08687716]
[1741609242604,0.063,130.34,130.28,1.5984]
[1741609242803,0.063,130.34,130.29,7.6751]
[1741609243004,0.063,130.34,130.3,43.08687716]
[1741609243295,0.063,130.34,130.31,43.08687716]
[1741609243607,0.063,130.34,130.3,43.08687716]
[1741609243798,0.14216157,130.33,130.29,43.08687716]
[1741609244005,0.14216157,130.33,130.28,52.36087716]
[1741609244220,0.14216157,130.33,130.28,44.68527716]
[1741609244421,50.76067716,130.32,130.26,7.6767]
[1741609244621,50.76067716,130.32,130.27,43.08687716]
[1741609244996,0.14216157,130.31,130.27,43.08687716]
[1741609245197,18.933972,130.31,130.26,43.08687716]
[1741609245396,43.22903873,130.29,130.24,0.063]
[1741609245605,43.22903873,130.27,130.24,0.063]
[1741609245811,43.08687716,130.27,130.24,0.063]
[1741609246010,0.14216157,130.25,130.24,0.063]
[1741609246213,62.02084916,130.25,130.24,0.063]
[1741609246606,171.56604916,130.25,130.24,0.063]
[1741609247299,0.14216157,130.24,130.16,50.76927716]
[1741609247611,43.08687716,130.21,130.16,50.76927716]
[1741609247808,18.79181043,130.22,130.17,43.08687716]
[1741609248112,0.14216157,130.21,130.17,43.08687716]
[1741609248309,18.933972,130.24,130.19,43.08687716]
[1741609248498,18.933972,130.24,130.2,50.76707716]
[1741609248698,18.933972,130.24,130.2,43.08687716]
[1741609248901,81.1,130.25,130.22,43.08687716]
[1741609249097,0.14216157,130.26,130.22,43.08687716]
[1741609249502,0.14216157,130.27,130.24,43.08687716]
[1741609249724,0.14216157,130.27,130.23,43.08687716]
[1741609249898,0.14216157,130.27,130.24,43.08687716]
[1741609250533,0.14216157,130.27,130.23,43.08687716]
[1741609251408,18.933972,130.31,130.24,20.0]
[1741609251618,143.12084916,130.31,130.26,43.08687716]
[1741609251805,143.12084916,130.31,130.25,43.08687716]
[1741609252206,0.14216157,130.29,130.25,43.08687716]
[1741609252609,0.14216157,130.29,130.26,7.6769]
[1741609252812,143.12084916,130.31,130.26,50.76377716]
[1741609253127,100.033972,130.31,130.27,43.08687716]
[1741609253305,81.24216157,130.31,130.27,43.08687716]
[1741609253504,0.14216157,130.33,130.28,43.08687716]
[1741609253715,0.14216157,130.33,130.29,43.08687716]
[1741609253918,0.063,130.34,130.31,43.08687716]
[1741609254825,0.063,130.34,130.31,50.76067716]
[1741609255027,0.03,130.31,130.29,50.76167716]
[1741609255229,0.03,130.31,130.28,52.36077716]
[1741609255406,0.03,130.31,130.29,43.08687716]
[1741609255612,0.03,130.31,130.3,43.08687716]
[1741609256428,0.03,130.31,130.28,52.36077716]
[1741609256635,0.03,130.31,130.28,44.68527716]
[1741609256826,0.03,130.31,130.28,43.08687716]
[1741609257221,26.661672,130.35,130.28,43.08687716]
[1741609257541,43.08687716,130.31,130.25,6.2044]
[1741609257745,43.08687716,130.3,130.25,43.08687716]
[1741609258051,43.22903873,130.3,130.25,43.08687716]
[1741609258354,43.08687716,130.26,130.24,0.063]
[1741609258512,43.22903873,130.27,130.24,0.063]
[1741609258712,50.90563873,130.27,130.24,0.063]
[1741609259436,18.933972,130.27,130.24,0.063]
[1741609260019,0.14216157,130.28,130.24,43.14987716]
[1741609260417,0.14216157,130.28,130.24,0.063]
[1741609260623,81.1,130.29,130.24,43.14987716]
[1741609260836,131.86217716,130.29,130.24,43.14987716]
[1741609261132,0.14216157,130.26,130.24,0.063]
[1741609261339,62.02084916,130.28,130.24,0.063]
[1741609261529,43.3712003,130.26,130.24,0.063]
[1741609262032,143.12084916,130.25,130.24,0.063]
[1741609262342,100.033972,130.25,130.24,0.063]
[1741609262515,143.12084916,130.25,130.24,0.063]
[1741609262710,81.24216157,130.25,130.24,0.063]
[1741609263034,0.14216157,130.28,130.24,43.14987716]
[1741609263338,0.14216157,130.26,130.24,0.063]
[1741609263519,0.14216157,130.28,130.24,43.14987716]
[1741609263731,0.14216157,130.27,130.24,0.063]
[1741609264147,0.14216157,130.29,130.24,0.063]
[1741609264353,0.14216157,130.27,130.24,0.063]
[1741609265356,43.08687716,130.27,130.24,0.063]
[1741609265536,0.14216157,130.27,130.24,0.063]
[1741609266563,43.22903873,130.27,130.24,0.063]
[1741609266723,18.79181043,130.25,130.24,0.063]
[1741609267057,150.79834916,130.25,130.24,0.063]
[1741609267229,143.12084916,130.25,130.24,0.063]
[1741609267426,81.24216157,130.25,130.24,0.063]
[1741609267632,43.08687716,130.28,130.24,0.063]
[1741609267935,26.608572,130.3,130.24,0.063]
[1741609268147,18.933972,130.28,130.24,0.063]
[1741609268365,62.02084916,130.25,130.24,0.063]
[1741609269355,69.69834916,130.25,130.24,0.063]
[1741609269560,75.97374916,130.25,130.24,0.063]
[1741609272662,90.27374916,130.25,130.24,0.063]
[1741609273028,62.02084916,130.25,130.24,0.063]
[1741609273256,18.933972,130.25,130.24,0.063]
[1741609273438,81.1,130.26,130.24,0.063]
[1741609273635,0.14216157,130.27,130.24,43.14987716]
[1741609274045,81.1,130.29,130.24,43.14987716]
[1741609274333,0.14216157,130.28,130.25,43.08687716]
[1741609275143,81.1,130.29,130.26,7.6769]
[1741609275763,18.933972,130.32,130.28,43.08687716]
[1741609276062,0.14216157,130.32,130.29,43.08687716]
[1741609276266,0.14216157,130.32,130.28,43.08687716]
[1741609276469,0.14216157,130.3,130.26,7.6769]
[1741609276756,0.14216157,130.29,130.26,7.6769]
[1741609276956,0.14216157,130.29,130.26,50.76377716]
[1741609277259,18.933972,130.32,130.27,43.08687716]
[1741609277463,62.02084916,130.32,130.27,43.08687716]
[1741609277826,69.69424916,130.32,130.27,43.08687716]
[1741609278469,18.933972,130.32,130.27,43.08687716]
[1741609278760,0.14216157,130.32,130.28,43.08687716]
[1741609279369,0.14216157,130.32,130.29,7.6751]
[1741609279968,81.1,130.33,130.29,50.76197716]
[1741609280173,0.03,130.34,130.32,43.08687716]
[1741609280669,0.03,130.34,130.31,43.08687716]
[1741609280973,0.03,130.34,130.33,43.08687716]
[1741609281674,0.03,130.34,130.33,50.75967716]
[1741609284458,0.056,130.35,130.33,50.75967716]
[1741609284459,0.056,130.35,130.33,93.84655432]
[1741609284655,0.056,130.35,130.34,43.08687716]
[1741609285544,0.056,130.35,130.34,50.75907716]
[1741609286464,0.056,130.35,130.33,43.08687716]
[1741609286779,0.056,130.35,130.32,52.31577716]
[1741609287069,0.056,130.35,130.32,43.08687716]
[1741609287276,0.056,130.35,130.31,50.76067716]
[1741609287582,0.056,130.35,130.34,50.75907716]
[1741609288866,0.056,130.35,130.3,7.6745]
[1741609289068,43.08687716,130.34,130.29,50.76177716]
[1741609289375,0.19816157,130.35,130.29,43.08687716]
[1741609289680,43.22903873,130.33,130.28,44.71987716]
[1741609290055,0.14216157,130.33,130.28,9.3087]
[1741609290379,0.14216157,130.31,130.26,50.76357716]
[1741609290742,0.14216157,130.31,130.27,43.08687716]
[1741609290946,0.14216157,130.32,130.27,43.08687716]
[1741609291372,0.14216157,130.32,130.28,43.08687716]
[1741609291679,81.24216157,130.33,130.29,43.08687716]
[1741609291882,0.14216157,130.32,130.28,50.76217716]
[1741609292179,0.14216157,130.32,130.28,43.08687716]
[1741609292787,0.14216157,130.31,130.27,7.6761]
[1741609293157,0.14216157,130.31,130.26,50.76357716]
[1741609293351,0.14216157,130.29,130.25,27.7404]
[1741609293556,0.14216157,130.29,130.25,70.82727716]
[1741609294175,18.79181043,130.29,130.25,7.7404]
[1741609294366,61.87868759,130.29,130.25,7.7404]
[1741609294564,18.79181043,130.29,130.25,7.7404]
[1741609294760,43.22903873,130.28,130.25,0.063]
[1741609294967,18.79181043,130.28,130.25,0.063]
[1741609295190,0.14216157,130.27,130.25,0.063]
[1741609295390,0.14216157,130.27,130.25,7.7405]
[1741609295564,0.14216157,130.27,130.25,0.063]
[1741609296478,81.24216157,130.29,130.25,43.14987716]
[1741609296866,81.24216157,130.29,130.25,0.063]
[1741609297285,0.14216157,130.27,130.25,0.063]
[1741609297692,81.24216157,130.29,130.25,43.14987716]
[1741609298065,81.24216157,130.29,130.26,43.08687716]
[1741609298372,81.1,130.29,130.28,43.08687716]
[1741609298580,18.79181043,130.33,130.28,43.08687716]
[1741609298891,0.14216157,130.34,130.31,43.08687716]
[1741609299066,0.056,130.35,130.32,43.08687716]
[1741609299272,0.056,130.35,130.33,43.08687716]
[1741609299591,0.056,130.35,130.28,1.5761]
[1741609299592,18.933972,130.34,130.3,43.08687716]
[1741609299896,62.02084916,130.34,130.28,72.33847716]
[1741609300066,143.12084916,130.34,130.29,43.08687716]
[1741609300266,100.033972,130.34,130.29,43.08687716]
[1741609300994,81.24216157,130.34,130.3,43.08687716]
[1741609301300,81.24216157,130.34,130.31,43.08687716]
[1741609301474,0.14216157,130.34,130.32,43.08687716]
[1741609301798,0.056,130.35,130.32,50.75967716]
[1741609301967,0.056,130.35,130.32,43.08687716]
[1741609302171,0.056,130.35,130.31,43.08687716]
[1741609302364,0.14216157,130.34,130.3,50.76137716]
[1741609302579,0.14216157,130.34,130.31,43.08687716]
[1741609303593,0.17216157,130.34,130.3,7.6745]
[1741609303778,0.17216157,130.34,130.3,43.08687716]
[1741609303967,7.84446157,130.34,130.29,50.76197716]
[1741609304494,0.14216157,130.32,130.28,43.08687716]
[1741609304787,0.14216157,130.32,130.29,43.08687716]
[1741609305491,0.14216157,130.32,130.26,7.6769]
[1741609305677,0.14216157,130.3,130.26,43.08687716]
[1741609305999,0.14216157,130.26,130.25,0.063]
[1741609307073,81.1,130.29,130.25,0.063]
[1741609307074,18.933972,130.28,130.25,0.063]
[1741609307965,69.69664916,130.28,130.25,0.063]
[1741609308192,18.933972,130.28,130.25,0.063]
[1741609308375,26.609872,130.28,130.25,0.063]
[1741609308570,69.69674916,130.28,130.25,0.063]
[1741609308784,62.02084916,130.28,130.25,0.063]
[1741609309092,69.69664916,130.28,130.25,0.063]
[1741609309295,0.14216157,130.26,130.25,0.063]
[1741609310598,69.69774916,130.26,130.25,0.063]
[1741609310999,62.02084916,130.26,130.25,0.063]
[1741609311668,69.69774916,130.26,130.25,0.063]
[1741609313077,62.02084916,130.26,130.25,0.063]
[1741609313490,18.933972,130.26,130.25,0.063]
[1741609314398,18.79181043,130.28,130.25,0.063]
[1741609314601,0.14216157,130.27,130.25,0.063]
[1741609314788,43.22903873,130.27,130.25,0.063]
[1741609314991,18.79181043,130.26,130.25,0.063]
[1741609315203,0.14216157,130.26,130.25,0.063]
[1741609315889,0.14216157,130.27,130.25,0.063]
[1741609316708,124.32903873,130.26,130.25,0.063]
[1741609317010,62.02084916,130.26,130.25,0.063]
[1741609318699,69.69774916,130.26,130.25,0.063]
[1741609319209,62.02084916,130.26,130.25,0.063]
[1741609319389,18.933972,130.26,130.25,0.063]
[1741609319712,62.02084916,130.26,130.25,0.063]
[1741609320080,18.933972,130.26,130.25,0.063]
[1741609320296,0.14216157,130.26,130.25,0.063]
[1741609321708,18.933972,130.26,130.25,0.063]
[1741609326297,62.02084916,130.26,130.25,0.063]
[1741609326596,69.69774916,130.26,130.25,0.063]
[1741609326803,18.933972,130.26,130.25,0.063]
[1741609327188,69.69774916,130.26,130.25,0.063]
[1741609327394,83.99774916,130.26,130.25,0.063]
[1741609328123,76.32084916,130.26,130.25,0.063]
[1741609328323,33.233972,130.26,130.25,0.063]
[1741609328894,18.933972,130.26,130.25,0.063]
[1741609329118,0.14216157,130.26,130.25,0.063]
[1741609329516,62.02084916,130.26,130.25,0.063]
[1741609329693,0.14216157,130.27,130.25,0.063]
[1741609330099,18.933972,130.27,130.25,0.063]
[1741609330926,143.12084916,130.26,130.25,0.063]
[1741609331498,150.79774916,130.26,130.25,0.063]
[1741609332120,69.69774916,130.26,130.25,0.063]
[1741609333925,62.02084916,130.26,130.25,0.063]
[1741609334396,69.69774916,130.26,130.25,0.063]
[1741609334595,62.02084916,130.26,130.25,0.063]
[1741609335228,69.69774916,130.26,130.25,0.063]
[1741609335820,62.02084916,130.26,130.25,0.063]
[1741609336123,18.933972,130.26,130.25,0.063]
[1741609336342,0.14216157,130.26,130.25,0.063]
[1741609337631,0.14216157,130.31,130.25,43.14987716]
[1741609337801,0.28432314,130.31,130.28,43.08687716]
[1741609338907,0.28432314,130.33,130.3,43.08687716]
[1741609339397,18.933972,130.33,130.25,26.9343]
[1741609339601,0.14216157,130.31,130.27,43.08687716]
[1741609339822,18.933972,130.31,130.26,43.08687716]
[1741609340011,18.933972,130.29,130.25,50.82737716]
[1741609340210,62.02084916,130.29,130.25,7.7405]
[1741609340410,0.14216157,130.27,130.25,0.063]
[1741609341124,43.22903873,130.26,130.25,0.063]
[1741609341434,143.12084916,130.26,130.25,0.063]
[1741609341930,100.033972,130.26,130.25,0.063]
[1741609342318,81.24216157,130.26,130.25,0.063]
[1741609342620,81.1,130.26,130.25,0.063]
[1741609343202,81.24216157,130.26,130.25,0.063]
[1741609344904,107.710872,130.26,130.25,0.063]
[1741609345414,150.79774916,130.26,130.25,0.063]
[1741609346508,81.24216157,130.26,130.25,0.063]
[1741609346736,81.1,130.26,130.25,43.14987716]
[1741609346918,0.14216157,130.31,130.25,43.14987716]
[1741609347124,81.38432314,130.32,130.28,43.08687716]
[1741609347323,0.14216157,130.3,130.27,43.08687716]
[1741609347627,0.14216157,130.3,130.26,43.08687716]
[1741609347809,0.14216157,130.3,130.27,43.08687716]
[1741609348006,81.24216157,130.32,130.29,43.08687716]
[1741609348831,81.24216157,130.32,130.28,50.76227716]
[1741609349008,81.24216157,130.32,130.28,43.08687716]
[1741609349409,81.24216157,130.32,130.3,43.08687716]
[1741609350631,81.24216157,130.32,130.27,20.0]
[1741609350811,0.14216157,130.3,130.27,63.08687716]
[1741609351007,81.24216157,130.32,130.29,43.08687716]
[1741609351207,81.24216157,130.32,130.3,43.08687716]
[1741609351626,81.24216157,130.32,130.29,43.08687716]
[1741609351824,18.67964886,130.34,130.31,44.74737716]
[1741609351825,0.03,130.34,130.31,44.74737716]
[1741609352032,0.03,130.34,130.33,43.08687716]
[1741609352236,0.03,130.34,130.31,1.6605]
[1741609352421,0.17216157,130.34,130.31,1.6605]
[1741609352622,0.17216157,130.34,130.32,43.08687716]
[1741609352931,0.03,130.34,130.33,43.08687716]
[1741609354515,0.03,130.34,130.33,86.17375432]
[1741609354715,0.03,130.34,130.33,50.75967716]
[1741609355717,0.03,130.34,130.33,7.6728]
[1741609355942,0.03,130.34,130.33,50.75967716]
[1741609357524,0.03,130.34,130.33,93.84655432]
[1741609358027,0.056,130.35,130.33,93.84655432]
[1741609358238,0.056,130.35,130.34,86.17375432]
[1741609358615,0.056,130.35,130.34,43.08687716]
[1741609359017,0.056,130.35,130.34,20.0]
[1741609359226,0.056,130.35,130.34,63.08687716]
[1741609359436,0.056,130.35,130.34,20.0]
[1741609359637,0.056,130.35,130.34,63.08687716]
[1741609360043,0.056,130.35,130.34,20.0]
[1741609360361,0.056,130.35,130.34,43.08687716]
[1741609362442,0.056,130.35,130.33,50.75947716]
[1741609362629,0.056,130.35,130.32,43.08687716]
[1741609362830,0.056,130.35,130.31,52.42097716]
[1741609363422,0.14216157,130.34,130.31,43.08687716]
[1741609363618,43.22903873,130.34,130.3,0.063]
[1741609363841,0.14216157,130.32,130.3,0.063]
[1741609364016,62.02084916,130.31,130.3,0.063]
[1741609364219,69.69484916,130.31,130.3,0.063]
[1741609365230,7.81616157,130.31,130.3,0.063]
[1741609365431,18.933972,130.31,130.3,0.063]
[1741609365630,62.02084916,130.31,130.3,0.063]
[1741609365820,69.69484916,130.31,130.3,0.063]
[1741609366625,62.02084916,130.31,130.3,0.063]
[1741609367139,18.933972,130.31,130.3,0.063]
[1741609367330,62.02084916,130.31,130.3,0.063]
[1741609368032,20.0,130.28,130.25,0.063]
[1741609368228,18.79181043,130.26,130.25,0.063]
[1741609369454,61.87868759,130.26,130.25,0.063]
[1741609370329,62.02084916,130.26,130.25,0.063]
[1741609370525,18.933972,130.26,130.25,0.063]
[1741609371758,62.02084916,130.26,130.25,0.063]
[1741609373056,18.933972,130.26,130.25,0.063]
[1741609374641,18.79181043,130.26,130.25,0.063]
[1741609374845,43.22903873,130.27,130.25,0.063]
[1741609374846,0.14216157,130.27,130.25,0.063]
[1741609375462,0.14216157,130.26,130.25,0.063]
[1741609375639,43.3712003,130.28,130.25,0.063]
[1741609375841,0.14216157,130.28,130.25,43.14987716]
[1741609376050,18.933972,130.28,130.25,43.14987716]
[1741609376232,18.933972,130.28,130.25,0.063]
[1741609376650,43.11687716,130.31,130.26,43.08687716]
[1741609376955,0.03,130.31,130.28,43.08687716]
[1741609377156,0.17216157,130.31,130.29,43.08687716]
[1741609377656,0.17216157,130.31,130.26,20.0]
[1741609377859,0.17216157,130.31,130.29,43.08687716]
[1741609378252,0.17216157,130.31,130.28,43.08687716]
[1741609378958,62.05084916,130.31,130.26,43.08687716]
[1741609379147,62.05084916,130.31,130.25,0.063]
[1741609379148,0.14216157,130.29,130.25,0.063]
[1741609379350,43.3712003,130.29,130.25,0.063]
[1741609380037,0.28432314,130.29,130.25,0.063]
[1741609380238,0.28432314,130.29,130.25,43.14987716]
[1741609380561,81.27216157,130.31,130.27,43.08687716]
[1741609380946,0.14216157,130.29,130.26,43.08687716]
[1741609381150,43.22903873,130.29,130.25,0.063]
[1741609381345,0.14216157,130.27,130.25,0.063]
[1741609381544,81.1,130.3,130.26,43.08687716]
[1741609381745,0.14216157,130.29,130.27,43.08687716]
[1741609382063,0.14216157,130.29,130.26,43.08687716]
[1741609382558,0.14216157,130.29,130.27,43.08687716]
[1741609382954,0.14216157,130.29,130.26,43.08687716]
[1741609383461,81.1,130.3,130.28,43.08687716]
[1741609384061,81.1,130.3,130.27,43.08687716]
[1741609384251,81.1,130.3,130.26,43.08687716]
[1741609384454,0.14216157,130.29,130.25,43.14987716]
[1741609384765,0.14216157,130.29,130.25,0.063]
[1741609385068,18.933972,130.29,130.25,43.14987716]
[1741609385663,0.14216157,130.29,130.27,43.08687716]
[1741609386165,0.14216157,130.29,130.25,0.063]
[1741609386362,0.14216157,130.29,130.25,43.14987716]
[1741609386565,0.14216157,130.27,130.25,0.063]
[1741609386951,143.12084916,130.29,130.25,0.063]
[1741609387841,100.033972,130.29,130.26,43.08687716]
[1741609388168,81.24216157,130.29,130.27,43.08687716]
[1741609388463,81.1,130.29,130.27,43.08687716]
[1741609388651,81.1,130.29,130.28,43.08687716]
[1741609388847,0.03,130.3,130.28,44.63427716]
[1741609389042,0.03,130.3,130.29,43.08687716]
[1741609389443,0.03,130.3,130.28,44.63427716]
[1741609389642,0.03,130.3,130.27,43.08687716]
[1741609389858,0.03,130.3,130.28,43.08687716]
[1741609390766,0.03,130.3,130.27,43.08687716]
[1741609391459,0.03,130.3,130.28,43.08687716]
[1741609391969,0.03,130.3,130.27,43.08687716]
[1741609392169,0.17216157,130.3,130.27,43.08687716]
[1741609392461,0.17216157,130.3,130.25,0.063]
[1741609392843,0.17216157,130.3,130.26,43.08687716]
[1741609393060,0.31432314,130.3,130.25,43.14987716]
[1741609393250,0.31432314,130.3,130.26,43.08687716]
[1741609393449,0.31432314,130.3,130.25,43.14987716]
[1741609394666,0.17216157,130.3,130.27,43.08687716]
[1741609395052,0.17216157,130.3,130.28,43.08687716]
[1741609395771,0.03,130.3,130.29,43.08687716]
[1741609396387,0.28432314,130.28,130.25,0.063]
[1741609396553,0.14216157,130.26,130.25,0.063]
[1741609397677,62.02084916,130.26,130.25,0.063]
[1741609398068,18.933972,130.26,130.25,0.063]
[1741609398255,62.02084916,130.26,130.25,0.063]
[1741609398789,0.28432314,130.26,130.25,0.063]
[1741609399076,69.69774916,130.26,130.25,0.063]
[1741609401767,83.99774916,130.26,130.25,0.0001]
[1741609401967,69.69774916,130.26,130.25,0.0001]
[1741609402376,26.610872,130.26,130.25,0.0001]
[1741609402579,69.69774916,130.26,130.25,0.0001]
[1741609404479,0.28432314,130.26,130.25,0.0001]
[1741609404680,0.14216157,130.26,130.25,0.0001]
[1741609405891,69.69774916,130.26,130.25,0.0001]
[1741609412293,18.79181043,130.25,130.24,0.0001]
[1741609412470,76.32084916,130.25,130.24,0.0001]
[1741609413186,83.99834916,130.25,130.24,0.0001]
[1741609413368,18.933972,130.21,130.17,1.5918]
[1741609413567,43.08687716,130.19,130.17,1.5918]
[1741609413770,43.08687716,130.19,130.16,0.063]
[1741609414164,18.933972,130.18,130.16,0.063]
[1741609414484,43.3712003,130.17,130.16,0.063]
[1741609414690,43.22903873,130.17,130.16,0.063]
[1741609414902,43.3712003,130.17,130.16,0.063]
[1741609415102,62.02084916,130.17,130.16,0.063]
[1741609415410,69.70304916,130.17,130.16,0.063]
[1741609415564,0.28432314,130.14,130.12,0.063]
[1741609415766,18.933972,130.12,130.1,0.063]
[1741609416074,0.28432314,130.09,130.04,1.6299]
[1741609416277,0.14216157,130.06,130.04,1.6299]
[1741609416477,43.3712003,130.09,130.04,44.71677716]
[1741609416671,43.3712003,130.09,130.04,1.6299]
[1741609416876,43.3712003,130.09,130.04,44.71677716]
[1741609417293,43.3712003,130.09,130.04,1.6299]
[1741609417492,0.14216157,130.05,130.01,1.5918]
[1741609417988,43.08687716,130.04,130.01,1.5918]
[1741609418190,43.22903873,130.05,130.01,1.5918]
[1741609418883,43.08687716,130.03,129.99,0.03]
[1741609419075,0.14216157,130.04,130.0,43.08687716]
[1741609419274,43.3712003,130.06,130.0,43.08687716]
[1741609419981,0.14216157,130.04,130.0,43.08687716]
[1741609420492,0.14216157,130.04,129.99,43.11687716]
[1741609420493,0.28432314,130.03,129.99,43.11687716]
[1741609420688,43.22903873,130.05,129.99,43.11687716]
[1741609420895,43.22903873,130.05,130.0,43.08687716]
[1741609421194,0.14216157,130.04,129.99,43.11687716]
[1741609421392,0.14216157,130.05,130.0,43.08687716]
[1741609421598,0.28432314,130.05,130.01,43.08687716]
[1741609422092,43.08687716,130.02,129.99,0.03]
[1741609422393,43.22903873,130.0,129.99,0.03]
[1741609422893,43.3712003,130.0,129.99,0.03]
[1741609423097,0.28432314,130.0,129.99,0.03]
[1741609423397,0.14216157,130.0,129.99,0.03]
[1741609423598,0.14216157,130.01,129.99,0.03]